Cogmind - Beta 16 *** ADVENTURER MODE // 2025.10.21 @ 20:20:49 Player: Gentle Jesus Result: Destroyed by S-10 Pest with Light Assault Rifle Performance ------------- Evolutions (0) 0 Regions Visited (3) 600 Robots Destroyed (34) 170 Value Destroyed (465) 465 Prototype IDs (0) 0 Alien Tech Used (0) 0 Bonus (0) 0 TOTAL SCORE: 1235 Bonus ------- None Cogmind --------- Core Integrity 0/250 Matter 280/300 Energy 185/200 System Corruption 2% Temperature Cool (0) Movement Rolling (140) Ox4 Location -10/Subcaves Parts ------- > --- POWER (1) -------- Subdweller Power Source > --- PROPULSION (2) --- Wheel Wheel > --- UTILITY (2) ------ Huge Storage Unit Utility Shielding > --- WEAPON (2) ------- Beam Cannon Battle Cannon > --- INVENTORY (25) --- Light Ion Engine Wheel Wheel Wheel Medium Matter Pod (100) Medium Matter Pod (100) Signal Interpreter Improved Terrain Scanner Assault Rifle Assault Rifle Battle Rifle Peak State ------------ > --- POWER ------------ Light Ion Engine > --- PROPULSION ------- Wheel Wheel > --- UTILITY ---------- Huge Storage Unit Improved Terrain Scanner > --- WEAPON ----------- Beam Cannon Battle Cannon > --- INVENTORY -------- Light Ion Engine Wheel Wheel Wheel Medium Matter Pod Medium Matter Pod Signal Interpreter Improved Terrain Scanner Utility Shielding Assault Rifle Assault Rifle [Rating: 11] Favorites ----------- Power Light Ion Engine Engine Light Ion Engine Propulsion Wheel Wheel Wheel Utility Huge Storage Unit Device Improved Terrain Scanner Storage Huge Storage Unit Protection Utility Shielding Weapon Small Laser Energy Gun Small Laser Energy Cannon Beam Cannon Ballistic Gun Assault Rifle Ballistic Cannon Battle Cannon Launcher Grenade Launcher Build | -11 -10 -10 -10 ------- Run | Yrd Mat Min Sub Slots Evolved . | . . . . Power . | . . . . Propulsion . | . . . . Utility . | . . . . Weapon . | . . . . Parts Attached 17 | 7 2 1 7 Power 3 | 1 . 1 1 Engine 3 | 1 . 1 1 Core . | . . . . Reactor . | . . . . Propulsion 4 | 2 . . 2 Treads . | . . . . Leg . | . . . . Wheel 4 | 2 . . 2 Hover . | . . . . Flight . | . . . . Utility 4 | 2 1 . 1 Device 1 | 1 . . . Storage 2 | 1 1 . . Processor . | . . . . Hackware . | . . . . Protection 1 | . . . 1 Artifact . | . . . . Weapon 6 | 2 1 . 3 Energy Gun 1 | 1 . . . Energy Cannon 1 | . . . 1 Ballistic Gun 1 | 1 . . . Ballistic Cannon 2 | . . . 2 Launcher 1 | . 1 . . Special Weapon . | . . . . Impact Weapon . | . . . . Slashing Weapon . | . . . . Piercing Weapon . | . . . . Special Melee Weapon . | . . . . Unidentified Prototypes . | . . . . Parts Lost 6 | . . 1 5 Power 2 | . . 1 1 Propulsion 2 | . . . 2 Utility 1 | . . . 1 Weapon 1 | . . . 1 Highest Loss Streak 2 | . . 1 2 To Critical Strikes . | . . . . Average Backups 9 | 1 6 11 11 Power . | . . . 1 Propulsion 2 | . 3 3 3 Utility 3 | . 1 4 4 Weapon 2 | . 1 2 2 Tool/Special . | . . . . Unused Backups 10 | . . . 10 Power 1 | . . . 1 Propulsion 3 | . . . 3 Utility 4 | . . . 4 Weapon 2 | . . . 2 Tool/Special . | . . . . Average Slot Usage (%) 99 | . 100 100 99 Engine 13 | . 14 14 13 Wheel 28 | . 28 28 28 Device 10 | . 14 14 5 Storage 14 | . 14 14 14 Protection 3 | . . . 8 Energy Gun 9 | . 14 14 3 Energy Cannon 5 | . . . 11 Ballistic Gun 2 | . 10 . . Ballistic Cannon 4 | . . . 10 Launcher 6 | . 3 14 2 Peak Build Rating 11 | 9 10 10 11 Average Rating 9 | 6 9 9 9 On Entrance 7 | . 9 10 10 Avg Prop Armor Cover (%) . | . . . . Naked Turns . | . . . . Heaviest Build 92 | 12 88 88 92 Greatest Support 26 | 26 26 26 26 Greatest Overweight (x) 4 | . 3 3 4 Average Overweight (x) 2 | . 1 3 3 Largest Inventory Capacity 25 | 8 25 25 25 Average Capacity 21 | 7 17 25 25 Most Carried 13 | 5 9 13 13 Average Carried 9 | 2 6 11 11 Final Capacity 25 | 8 25 25 25 Final Carried 13 | 5 9 13 11 Class Distribution -------------------- 100% | Mutant Dominant Class ---------------- Mutant | -10/Materials Mutant | -10/Mines Mutant | -10/Subcaves Resources | -11 -10 -10 -10 ----------- Run | Yrd Mat Min Sub Matter Collected 835 | 300 30 184 321 Remotely . | . . . . Salvage Created 686 | 175 152 176 183 Parts 57 | 12 8 21 16 Haulers Intercepted . | . . . . Recyclers Shooed 1 | 1 . . . Parts Field Recycled . | . . . . Retrieved Matter . | . . . . Parts Self-Destructed 1 | . . . 1 Prevented . | . . . . Parts Restored . | . . . . Kills | -11 -10 -10 -10 ------- Run | Yrd Mat Min Sub Combat Hostiles Destroyed 22 | . 4 9 9 Guns 6 | . 4 . 2 Cannons 7 | . . . 7 AOE 9 | . . 9 . Classes Destroyed 6 | 3 1 1 1 Worker 2 | 2 . . . Builder 2 | . . 2 . Tunneler 5 | 4 . 1 . Recycler 3 | 1 1 1 . Swarmer 16 | . 4 9 3 Subdweller 6 | . . . 6 Best Kill Streak 8 | 5 5 8 3 Combat Bots Only 4 | . 4 3 3 Max Kills in Single Turn 2 | 1 2 2 2 Gunslinging 1 | . 1 . . Exploded 2 | . . 2 . Melee . | . . . . Uniques/NPCs Destroyed . | . . . . Combat | -11 -10 -10 -10 -------- Run | Yrd Mat Min Sub Hostile Shots Fired 69 | . 12 14 43 Missed 20 | . 4 3 13 Hits 49 | . 8 11 30 Projectile 49 | . 8 11 30 AOE 5 | . . . 5 Damage Taken 731 | . 38 113 580 Core 250 | . 5 13 232 Absorbed by Shields . | . . . . Ignored by Resistances 202 | . 16 26 160 Core Remaining (%) 100 | 100 . . . Volleys Fired 60 | 10 11 7 32 Largest 2 | 2 2 1 2 Hottest 100 | 60 60 30 100 Shots Fired 108 | 20 20 7 61 Gun 43 | 20 19 . 4 Cannon 54 | . . . 54 Launcher 11 | . 1 7 3 Special . | . . . . Kinetic 45 | 10 10 . 25 Thermal 52 | 10 9 . 33 Explosive 11 | . 1 7 3 Electromagnetic . | . . . . Robot Hit Streak 29 | 4 8 9 29 Robot Miss Streak 4 | 1 4 . 1 Penetration Max . | . . . . Secondary Targets 2 | . 2 . . Max Gunslinging Chain 1 | . 1 . . Shots Hit Robots 60 | 11 12 1 36 Core Hits 44 | 8 6 13 17 Critical Kills . | . . . . Critical Parts Destroyed . | . . . . Critical Strikes . | . . . . Melee Attacks . | . . . . Impact . | . . . . Slashing . | . . . . Piercing . | . . . . Sneak Attacks . | . . . . Combat Hostiles . | . . . . Follow-up Attacks . | . . . . Damage Inflicted 1576 | 140 143 555 738 Guns 328 | 140 143 . 45 Cannons 578 | . . . 578 Explosions 593 | . . 478 115 Melee . | . . . . Ramming 77 | . . 77 . Kinetic 442 | 75 89 . 278 Thermal 464 | 65 54 . 345 Explosive 593 | . . 478 115 Electromagnetic . | . . . . Impact . | . . . . Slashing . | . . . . Piercing . | . . . . Highest Corruption 2 | . . 2 2 Average Corruption 2 | . . 2 2 Corruption Purged . | . . . . Corruption Blocked . | . . . . Effects 9 | . . 3 6 Message Errors 2 | . . 1 1 Matter Fused 1 | . . . 1 Heat Flow Errors 2 | . . . 2 Energy Discharges 2 | . . 1 1 Parts Rejected 1 | . . . 1 Alerts 1 | . . 1 . Overload Shots . | . . . . Overflow Damage 8 | . . 8 . Projectiles . | . . . . Explosions 8 | . . 8 . Melee . | . . . . Knockbacks 4 | . . . 4 Impact . | . . . . Kinetic 3 | . . . 3 Secondary 1 | . . . 1 Self-Inflicted Damage 52 | . . 52 . Shots 2 | . . 2 . Rammed 3 | . . 3 . Targets Rammed 3 | . . 3 . Kicked . | . . . . Crushed . | . . . . Highest Temperature 251 | . . . 251 Average Temperature 107 | . . . 107 Received Heat Transfer 96 | . . . 96 Siege Activations . | . . . . Martial Activations . | . . . . Shielding Activations . | . . . . Robots Disrupted . | . . . . Combat Hostiles . | . . . . Robots Corrupted . | . . . . Combat Hostiles . | . . . . Parts Fried . | . . . . Impact Corruptions . | . . . . Robots Melted . | . . . . Combat Hostiles . | . . . . Parts Melted . | . . . . Heat Transferred 1004 | 150 125 . 729 Parts Sabotaged . | . . . . Parts Stolen . | . . . . Parts Stripped . | . . . . Power Chain Reactions . | . . . . Alert | -11 -10 -10 -10 ------- Run | Yrd Mat Min Sub Maximum Alert Level . | . . . . Low Security (%) 100 | 100 100 100 . Level 1 . | . . . . Level 2 . | . . . . Level 3 . | . . . . Level 4 . | . . . . Level 5 . | . . . . High Security . | . . . . Max Security . | . . . . Peak Influence 162 | 10 111 162 . Initial 3 | . . 3 . Average 44 | 1 41 60 . Influence Increases 565 | 35 131 294 105 Destroy 0b10 Robot/C 320 | . 80 180 60 Destroy 0b10 Robot/NC 60 | 35 5 20 . Destroy Leader 40 | . 10 30 . Successful Hack 11 | . 11 . . Destroy Structure 59 | . 10 49 . Partial Spotted 15 | . 15 . . Lose Combat Pursuer 60 | . . 15 45 Influence Decreases 470 | 35 120 208 107 Entered New Map 66 | . . 8 58 Time Decay 394 | 35 120 190 49 Lost Part 10 | . . 10 . Squads Dispatched 1 | . 1 . . Investigation 1 | . 1 . . Extermination . | . . . . Reinforcement . | . . . . Assault . | . . . . Garrison . | . . . . Intercept . | . . . . Searches Triggered . | . . . . Construction Impeded . | . . . . Haulers Reinforced . | . . . . Active Scanning Responses . | . . . . Cargo Convoy Interrupts . | . . . . Stealth | -11 -10 -10 -10 --------- Run | Yrd Mat Min Sub Distress Signals 2 | . 1 1 . Communications Jammed . | . . . . Distress Signals . | . . . . Times Spotted 26 | . 5 10 11 Peak Tracking Total 5 | . 4 3 5 Tactical Retreats 2 | . . 1 1 Traps | -11 -10 -10 -10 ------- Run | Yrd Mat Min Sub Traps Triggered . | . . . . Indirectly . | . . . . Trap Hack Attempts . | . . . . Triggered . | . . . . Disarmed . | . . . . Reprogrammed . | . . . . Reused . | . . . . Traps Extracted . | . . . . Installed . | . . . . Triggered . | . . . . Machines | -11 -10 -10 -10 ---------- Run | Yrd Mat Min Sub Machines Disabled . | . . . . Max in Single Turn . | . . . . Machines Repaired . | . . . . Machines Dismantled . | . . . . Machines Sabotaged . | . . . . Overloaded Fab Kills . | . . . . Hacking | -11 -10 -10 -10 --------- Run | Yrd Mat Min Sub Machines Accessed 4 | . 4 . . Terminals 4 | . 4 . . Fabricators . | . . . . Repair Stations . | . . . . Recycling Units . | . . . . Scanalyzers . | . . . . Garrison Access . | . . . . Total Hacks 10 | . 10 . . Successful 3 | . 3 . . Failed 7 | . 7 . . Catastrophic 1 | . 1 . . Database Lockouts . | . . . . Manual 6 | . 6 . . Terminals 10 | . 10 . . Fabricators . | . . . . Repair Stations . | . . . . Recycling Units . | . . . . Scanalyzers . | . . . . Garrison Access . | . . . . Terminal Hacks 3 | . 3 . . Branch Access Points 1 | . 1 . . Zone Layout 2 | . 2 . . Fabricator Hacks . | . . . . Repair Station Hacks . | . . . . Recycling Unit Hacks . | . . . . Scanalyzer . | . . . . Garrison Access Hacks . | . . . . Unauthorized Hacks . | . . . . Terminals . | . . . . Fabricators . | . . . . Repair Stations . | . . . . Recycling Units . | . . . . Scanalyzers . | . . . . Garrison Access . | . . . . Data Cores Recovered . | . . . . Used . | . . . . Hacking Detections 3 | . 3 . . Full Trace Events 1 | . 1 . . Feedback Events . | . . . . Feedback Blocked . | . . . . Robot Schematics Acquired . | . . . . Robots Built . | . . . . Authchips . | . . . . Time . | . . . . Total Robot Build Rating . | . . . . Part Schematics Acquired . | . . . . Parts Built . | . . . . Authchips . | . . . . Time . | . . . . Total Part Build Rating . | . . . . Part Studies Acquired . | . . . . Parts Repaired . | . . . . Time . | . . . . Parts Recycled . | . . . . Recycled Matter . | . . . . Retrieved Matter . | . . . . Retrieved Components . | . . . . Parts Scanalyzed . | . . . . Part Schematics Acquired . | . . . . Parts Damaged . | . . . . Bothacking | -11 -10 -10 -10 ------------ Run | Yrd Mat Min Sub Used RIF Installer . | . . . . Robots Hacked . | . . . . Non-combat . | . . . . Combat . | . . . . Robot Hacks Applied . | . . . . Relay Couplers Released . | . . . . Fabnet Peak Effective % . | . . . . Robots Rewired . | . . . . Allies Hacked . | . . . . Hacks Repelled . | . . . . Allies | -11 -10 -10 -10 -------- Run | Yrd Mat Min Sub Total Allies . | . . . . Largest Group . | . . . . Highest-Rated Group . | . . . . Highest-Rated Ally . | . . . . Total Orders . | . . . . Ally Attacks . | . . . . Total Damage . | . . . . Kills . | . . . . Allies Corrupted . | . . . . Allies Melted . | . . . . Intel | -11 -10 -10 -10 ------- Run | Yrd Mat Min Sub Active Infowar (turns) 1203 | 36 340 511 316 Terrain 1203 | 36 340 511 316 Robot Analysis Total . | . . . . Derelict Logs Recovered 1 | . . . 1 Drone Launches . | . . . . Drone Recoveries . | . . . . Exploration | -11 -10 -10 -10 ------------- Run | Yrd Mat Min Sub Turns Passed 1805 | 172 340 511 782 Spaces Moved 1222 | 141 271 324 486 Core 2 | 2 . . . Treads . | . . . . Legs . | . . . . Wheels 1220 | 139 271 324 486 Hover . | . . . . Flight . | . . . . Fastest Speed 50 | 50 90 135 135 Average Speed 126 | 89 111 135 139 Slowest Speed 140 | 100 135 135 140 Overloaded Moves . | . . . . Propulsion Burnouts . | . . . . Robots Hopped . | . . . . Potential Cave-ins . | . . . . Cave-ins Triggered . | . . . . Exploration Rate (%) 33 | 5 46 59 23 Regions Visited 3 Branch Regions 2 Pre-discovered Areas . | . . . . Known Exits Taken 1 | . 1 . . Unknown Exits Taken 2 | 1 . 1 . Scrap Searched 5 | . . 1 4 Spaces Dug 9 | . 9 . . Terrain Destroyed 91 | . 9 64 18 Melee . | . . . . Projectile . | . . . . AOE 91 | . 9 64 18 Terrain Rammed . | . . . . Walls Destroyed . | . . . . Machines Disabled . | . . . . Actions | -11 -10 -10 -10 --------- Run | Yrd Mat Min Sub Total 1371 | 162 288 389 532 Wait 52 | . . 51 1 Move 1219 | 140 270 323 486 Hop . | . . . . Pick Up 16 | 5 4 4 3 Fast Attach 11 | 7 . 1 3 Attach 5 | . . . 5 Detach . | . . . . Swap 2 | . 2 . . Drop 3 | . 1 . 2 Fire 60 | 10 11 7 32 Melee . | . . . . Ram 3 | . . 3 . Kick . | . . . . Crush . | . . . . Escape Stasis . | . . . . Rewire . | . . . . Trap . | . . . . Miscellaneous . | . . . . Route ------- -11/Scrapyard -10/Materials (discovered 4 exits: [*Mat x2] / *Min x2) -10/Mines -10/Subcaves History --------- Turn | Location | Event 7 | -11/Scrapyard | Discovered new exit (range 16) 173 | -11/Scrapyard | Entered Materials 280 | -10/Materials | Discovered new exit (range 15) 284 | -10/Materials | Identified exit to Mines 307 | -10/Materials | Build established: Mutant 364 | -10/Materials | Discovered new exit (range 13) 513 | -10/Materials | Entered Mines 742 | -10/Mines | Found a Scrap Suit stashed away for nefarious purposes 1006 | -10/Mines | Discovered new exit (range 5) 1024 | -10/Mines | Entered Subcaves 1215 | -10/Subcaves | Disturbed a concealed Subdweller 1241 | -10/Subcaves | Learned 2 Materials zone layouts 1339 | -10/Subcaves | Core integrity fell below 50% 1654 | -10/Subcaves | Shifting Twisted Machinery released Battle Rifle 1662 | -10/Subcaves | Shifting Twisted Machinery released Battle Cannon 1747 | -10/Subcaves | Core integrity fell below 20% 1806 | -10/Subcaves | Destroyed by S-10 Pest with Light Assault Rifle Last Messages --------------- System corrupted: Battle Cannon rejected. Acquired Battle Cannon. D3-RCC(R) knocked back. YF-AFG(R) knocked back. Wheel destroyed. D3-RCC(R) destroyed. Lgt. Ion Engine destroyed. YF-AFG(R) destroyed. Acquired 34 matter. Acquired 11 matter. Acquired 2 matter. Searching scrap... Found Spk. Treads. Found 59 Matter. Acquired 8 matter. S-10 Pest knocked back. [Achievement: Bumper Bots] S-10 Pest destroyed. Lgt. Assault Rifle fries itself beyond repair. S-10 Pest destroyed. Map ----- +----------------------------------------------------+ | #???????????????????????????????????????????? | | ##" ##??????????????????????????????????????????? | | ?## ##?????????????????????????????????????????? | | ??# ##????????????????????????????????????????? | | ??## #????????????????????????????????????????? | | ???######????????????????????????????????????????? | | ?????????????????????????????????????????????????? | | ?????????????????????????????????????????????????? | | ?????????????????????????????????????????????????? | | ?????????????????????????????????????????????????? | | ?????????????????????????????????????????????????? | | ???????????????????????????????????? ???????????? | | ???????????????????????????????????? ???????????? | | ???????????????????????????????????? ##?????????? | | ???????????????????????????????????? #?????????? | | ????????????????????????????????????% #?????????? | | ??????????????#"???????????????????? #?????????? | | ????????##????#" ??????????????????? ##????????? | | ???????##"###?# % ?????????????????? #????????? | | ???????#"" ##? ????????????????? #????????? | | ???????# #??? ???????????????? #????????? | | ?#######" #?????%=##?????????????# ?????????? | | ?# ## "" ####????%s##???????????# ##????????? | | ## """ ## ##????#%###?????????# #????????? | | """" #????##=%#????????## #????????? | | " ]## ##?#####@####????## ###??????? | | ### #### ### # # ##?### # #???? | | # "#?#" ##??# ## ### #?????? | | ## #?## #???# ### [ % | | ?# #??###???## ### # # # & ## # ## | | ?## #???????## ######## [ & #? #????? | | ??# ??????# ## #??# = #? ??? | | ??# ?????## ## ##?# ##? ? | | ??? #????# # ###[ #?? # ### | | ??? # ## # %! #?? #?##?? | | ??? ##??? ## ???? | | ??? # ##????##?## ??? | | ???# # ## # ### ###??????????# ##?? | | ???? #?##?##### ###?## ##?????????????##??? | | ????# ???????????# ##????# #??????????????????? | | ????????????????# ##?????###??????????????????? | | ????????????????## #???????????????????????????? | | ?????????????????# #???????????????????????????? | | ?????????????????# ???????????????????????????? | | ????????????????? ???????????????????????????? | | ???????????????? ## ???????????????????????????? | | ??????????????? #?? ???????????????????????????? | | ??????????????? ???????????????????????????????? | | ??????????????# ???????????????????????????????? | | ??????????????? ????????????????????????????????? | +----------------------------------------------------+ Best States ------------- Heat Dissipation 25 Energy Generation 15 Energy Capacity 200 Matter Stores 300 Matter Capacity 300 Sight Range 16 Terrain Scan Range 16 Terrain Scan Density 10 Resistance: KI 20 Resistance: TH 20 Resistance: EX 20 Resistance: EM 20 Resistance: I 20 Resistance: S 20 Resistance: P 20 Utility Shielding 33 Evasion (%) 42 Offensive Hacking 10 Item Schematics ----------------- None Robot Schematics ------------------ None Fabricated ------------ Nothing Repaired ---------- Nothing Studied --------- None Alien Tech Used ----------------- None Achievements -------------- Bumper Bots DATA ERROR: Steam Global Achievement% Organ Harvest There's More Where That Came From Challenges ------------ None Game ------ Seed GaussAlloyRecalibrator Manual? 0 Play Time 00:11:09 Cumulative 158.8 hours Start 2025.10.21 @ 20:10:04 End 2025.10.21 @ 20:20:49 Sessions 1 Manual Loads 0 Difficulty Adventurer Special Mode None Game No. 130 Rogue 0 Adventurer 130 Explorer 0 Win Type - Total 4 Types 3/0/0/1/0/0/0/0/0/0 Lore% 63 Gallery% 61 Achievement% 32 Wizard Run 0 Options --------- Layout 1 ASCII 0 Keyboard 0 Movement Arrows Keybinds 0 Fullscreen 1 Font 24/Smallcaps Map View 50x35 Zoom Use 13% Tactical HUD 0 Map Filters NONE Filters NONE Steam 1 RUN: 3807d4b1-ab68-490b-9552-c43dfd07ca2d